[Event "Titled Tuesday Blitz March 28 Early 2023"]
[White "Garrido, Denis"]
[Black "Tagliata"]
[WhiteFideId "601217"]
[WhiteElo "2281"]
[BlackElo "2206"]
[Result "0-1"]
[Round "08"]
[TimeControl "180+2"]
[Date "2023.03.28"]
[WhiteClock "0:00:15"]
[BlackClock "0:00:14"]

1. e4 {[%clk 0:03:00]}  c5 {[%clk 0:02:57]} 2. Nf3 {[%clk 0:03:00]}  Nc6 {[%clk 0:02:57]} 3. d4 {[%clk 0:03:00]}  cxd4 {[%clk 0:02:58]} 4. Nxd4 {[%clk 0:03:01]}  Nf6 {[%clk 0:02:58]} 5. Nc3 {[%clk 0:03:00]}  e5 {[%clk 0:02:59]} 6. Ndb5 {[%clk 0:03:00]}  d6 {[%clk 0:02:59]} 7. Bg5 {[%clk 0:03:00]}  a6 {[%clk 0:02:59]} 8. Na3 {[%clk 0:03:00]}  b5 {[%clk 0:02:58]} 9. Nd5 {[%clk 0:03:01]}  Be7 {[%clk 0:02:58]} 10. Bxf6 {[%clk 0:03:01]}  Bxf6 {[%clk 0:02:59]} 11. c3 {[%clk 0:03:01]}  O-O {[%clk 0:02:59]} 12. Nc2 {[%clk 0:03:02]}  Rb8 {[%clk 0:02:59]} 13. h4 {[%clk 0:03:01]}  g6 {[%clk 0:02:57]} 14. Bd3 {[%clk 0:02:58]}  Be6 {[%clk 0:02:50]} 15. Nce3 {[%clk 0:02:55]}  Bxh4 {[%clk 0:02:34]} 16. Qf3 {[%clk 0:02:50]}  Bg5 {[%clk 0:02:32]} 17. g4 {[%clk 0:02:40]}  Bxd5 {[%clk 0:02:26]} 18. Nxd5 {[%clk 0:02:38]}  Kg7 {[%clk 0:02:25]} 19. Ke2 {[%clk 0:02:14]}  Ne7 {[%clk 0:02:21]} 20. Ne3 {[%clk 0:02:09]}  b4 {[%clk 0:02:15]} 21. c4 {[%clk 0:02:07]}  Nc6 {[%clk 0:02:14]} 22. Qh3 {[%clk 0:02:04]}  Nd4+ {[%clk 0:02:13]} 23. Kf1 {[%clk 0:02:02]}  h6 {[%clk 0:02:13]} 24. Kg2 {[%clk 0:02:00]}  Ne6 {[%clk 0:02:12]} 25. Nd5 {[%clk 0:01:59]}  a5 {[%clk 0:01:57]} 26. b3 {[%clk 0:01:56]}  Rc8 {[%clk 0:01:48]} 27. Rad1 {[%clk 0:01:54]}  Rc5 {[%clk 0:01:48]} 28. Qf3 {[%clk 0:01:42]}  Nd4 {[%clk 0:01:44]} 29. Qh3 {[%clk 0:01:40]}  Qa8 {[%clk 0:01:42]} 30. Kf1 {[%clk 0:01:38]}  a4 {[%clk 0:01:42]} 31. Rh2 {[%clk 0:01:31]}  axb3 {[%clk 0:01:41]} 32. axb3 {[%clk 0:01:31]}  Qa2 {[%clk 0:01:28]} 33. f4 {[%clk 0:01:28]}  Qxb3 {[%clk 0:01:21]} 34. fxg5 {[%clk 0:01:11]}  Qxd1+ {[%clk 0:01:21]} 35. Kf2 {[%clk 0:01:12]}  Qd2+ {[%clk 0:01:16]} 36. Kf1 {[%clk 0:01:11]}  Qd1+ {[%clk 0:01:13]} 37. Kf2 {[%clk 0:01:10]}  h5 {[%clk 0:01:11]} 38. gxh5 {[%clk 0:01:07]}  gxh5 {[%clk 0:01:12]} 39. Nf6 {[%clk 0:00:59]}  Qd2+ {[%clk 0:01:05]} 40. Kf1 {[%clk 0:00:59]}  Qf4+ {[%clk 0:01:04]} 41. Rf2 {[%clk 0:00:57]}  Qc1+ {[%clk 0:00:52]} 42. Kg2 {[%clk 0:00:53]}  Rh8 {[%clk 0:00:48]} 43. Nxh5+ {[%clk 0:00:31]}  Kf8 {[%clk 0:00:42]} 44. g6 {[%clk 0:00:22]}  Qg5+ {[%clk 0:00:39]} 45. Kf1 {[%clk 0:00:20]}  Rxh5 {[%clk 0:00:33]} 46. Rxf7+ {[%clk 0:00:19]}  Kg8 {[%clk 0:00:33]} 47. Rg7+ {[%clk 0:00:18]}  Kxg7 {[%clk 0:00:30]} 48. Qd7+ {[%clk 0:00:18]}  Kxg6 {[%clk 0:00:22]} 49. Qe8+ {[%clk 0:00:19]}  Kg7 {[%clk 0:00:20]} 50. Qd7+ {[%clk 0:00:19]}  Kg8 {[%clk 0:00:18]} 51. Qe8+ {[%clk 0:00:19]}  Kh7 {[%clk 0:00:18]} 52. Qf7+ {[%clk 0:00:18]}  Kh6 {[%clk 0:00:15]} 53. Qf8+ {[%clk 0:00:16]}  Qg7 {[%clk 0:00:16]} 54. Qxd6+ {[%clk 0:00:16]}  Kh7 {[%clk 0:00:15]} 55. Qxc5 {[%clk 0:00:15]}  Rh1+ {[%clk 0:00:15]} 56. Kf2 {[%clk 0:00:15]}  Qg1# {[%clk 0:00:14]} 0-1


[Site "https://www.chess.com"]

[Event "Titled Tuesday Blitz March 28 Early 2023"]
[White "Clawitter, Craig"]
[Black "Kiseleva, Arina"]
[WhiteFideId "2023105"]
[BlackFideId "4164989"]
[WhiteElo "2244"]
[BlackElo "1756"]
[Result "0-1"]
[Round "08"]
[TimeControl "180+2"]
[Date "2023.03.28"]
[WhiteClock "0:00:07"]
[BlackClock "0:00:03"]

1. e4 {[%clk 0:03:00]}  c6 {[%clk 0:02:59]} 2. d4 {[%clk 0:02:59]}  d5 {[%clk 0:03:00]} 3. e5 {[%clk 0:03:00]}  Bf5 {[%clk 0:02:59]} 4. Nf3 {[%clk 0:03:01]}  e6 {[%clk 0:02:58]} 5. Be2 {[%clk 0:03:01]}  h6 {[%clk 0:02:57]} 6. Nbd2 {[%clk 0:02:57]}  c5 {[%clk 0:02:44]} 7. dxc5 {[%clk 0:02:50]}  Bxc5 {[%clk 0:02:42]} 8. Nb3 {[%clk 0:02:50]}  Bb6 {[%clk 0:02:38]} 9. c4 {[%clk 0:02:51]}  Ne7 {[%clk 0:02:27]} 10. O-O {[%clk 0:02:45]}  Nbc6 {[%clk 0:02:20]} 11. h3 {[%clk 0:02:39]}  dxc4 {[%clk 0:02:07]} 12. Bxc4 {[%clk 0:02:40]}  Be4 {[%clk 0:01:40]} 13. Nbd2 {[%clk 0:02:27]}  Bd5 {[%clk 0:01:33]} 14. Qa4 {[%clk 0:02:09]}  O-O {[%clk 0:01:24]} 15. Bxd5 {[%clk 0:01:56]}  Qxd5 {[%clk 0:01:18]} 16. Qg4 {[%clk 0:01:54]}  Nxe5 {[%clk 0:01:14]} 17. Nxe5 {[%clk 0:01:53]}  Qxe5 {[%clk 0:01:15]} 18. Nc4 {[%clk 0:01:49]}  Qf5 {[%clk 0:01:10]} 19. Nxb6 {[%clk 0:01:46]}  Qxg4 {[%clk 0:01:08]} 20. hxg4 {[%clk 0:01:46]}  axb6 {[%clk 0:01:09]} 21. a3 {[%clk 0:01:30]}  Ra4 {[%clk 0:01:05]} 22. f3 {[%clk 0:01:28]}  Rc8 {[%clk 0:00:56]} 23. Be3 {[%clk 0:01:27]}  Rc2 {[%clk 0:00:52]} 24. Rf2 {[%clk 0:01:20]}  Rxf2 {[%clk 0:00:40]} 25. Kxf2 {[%clk 0:01:21]}  Nd5 {[%clk 0:00:40]} 26. Rc1 {[%clk 0:01:14]}  b5 {[%clk 0:00:37]} 27. Rc8+ {[%clk 0:01:04]}  Kh7 {[%clk 0:00:32]} 28. Rb8 {[%clk 0:01:03]}  Nxe3 {[%clk 0:00:25]} 29. Kxe3 {[%clk 0:01:04]}  b4 {[%clk 0:00:25]} 30. Rxb7 {[%clk 0:00:52]}  bxa3 {[%clk 0:00:24]} 31. bxa3 {[%clk 0:00:49]}  Rxa3+ {[%clk 0:00:25]} 32. Kf4 {[%clk 0:00:47]}  Kg6 {[%clk 0:00:26]} 33. Rb5 {[%clk 0:00:41]}  Kf6 {[%clk 0:00:25]} 34. Kg3 {[%clk 0:00:30]}  g6 {[%clk 0:00:19]} 35. Kf4 {[%clk 0:00:28]}  Ra2 {[%clk 0:00:18]} 36. Kg3 {[%clk 0:00:28]}  Rd2 {[%clk 0:00:09]} 37. Ra5 {[%clk 0:00:26]}  Rd5 {[%clk 0:00:09]} 38. Ra4 {[%clk 0:00:22]}  g5 {[%clk 0:00:09]} 39. Kf2 {[%clk 0:00:20]}  Ke5 {[%clk 0:00:09]} 40. Ke3 {[%clk 0:00:19]}  Rb5 {[%clk 0:00:08]} 41. g3 {[%clk 0:00:17]}  Rb3+ {[%clk 0:00:07]} 42. Kf2 {[%clk 0:00:17]}  Rb2+ {[%clk 0:00:07]} 43. Ke3 {[%clk 0:00:17]}  Rb3+ {[%clk 0:00:07]} 44. Kf2 {[%clk 0:00:17]}  f5 {[%clk 0:00:07]} 45. f4+ {[%clk 0:00:15]}  Kf6 {[%clk 0:00:07]} 46. gxf5 {[%clk 0:00:15]}  Kxf5 {[%clk 0:00:05]} 47. fxg5 {[%clk 0:00:14]}  hxg5 {[%clk 0:00:05]} 48. Kg2 {[%clk 0:00:13]}  e5 {[%clk 0:00:05]} 49. Kf2 {[%clk 0:00:13]}  g4 {[%clk 0:00:03]} 50. Kg2 {[%clk 0:00:11]}  Rb2+ {[%clk 0:00:04]} 51. Kg1 {[%clk 0:00:11]}  e4 {[%clk 0:00:04]} 52. Ra5+ {[%clk 0:00:10]}  Kf6 {[%clk 0:00:04]} 53. Ra6+ {[%clk 0:00:11]}  Ke5 {[%clk 0:00:04]} 54. Ra8 {[%clk 0:00:10]}  Kd4 {[%clk 0:00:03]} 55. Rd8+ {[%clk 0:00:10]}  Ke3 {[%clk 0:00:04]} 56. Re8 {[%clk 0:00:09]}  Kf3 {[%clk 0:00:03]} 57. Re7 {[%clk 0:00:08]}  e3 {[%clk 0:00:03]} 58. Rf7+ {[%clk 0:00:07]}  Kxg3 {[%clk 0:00:03]} 0-1


[Site "https://www.chess.com"]

[Event "Titled Tuesday Blitz March 28 Early 2023"]
[White "Sanchez, Robert"]
[Black "Kaplan, Avi Harrison"]
[WhiteFideId "2034360"]
[BlackFideId "30934559"]
[WhiteElo "2135"]
[BlackElo "1983"]
[Result "0-1"]
[Round "08"]
[TimeControl "180+2"]
[Date "2023.03.28"]
[WhiteClock "0:00:23"]
[BlackClock "0:00:28"]

1. e4 {[%clk 0:03:00]}  Nh6 {[%clk 0:02:40]} 2. d4 {[%clk 0:02:46]}  g6 {[%clk 0:02:34]} 3. Nc3 {[%clk 0:02:46]}  Bg7 {[%clk 0:02:32]} 4. Be3 {[%clk 0:02:46]}  O-O {[%clk 0:02:28]} 5. f3 {[%clk 0:02:46]}  f5 {[%clk 0:02:27]} 6. Qd2 {[%clk 0:02:45]}  e5 {[%clk 0:02:20]} 7. dxe5 {[%clk 0:02:42]}  fxe4 {[%clk 0:02:19]} 8. O-O-O {[%clk 0:02:26]}  Nf5 {[%clk 0:02:15]} 9. f4 {[%clk 0:02:16]}  Nxe3 {[%clk 0:01:50]} 10. Qxe3 {[%clk 0:02:14]}  Nc6 {[%clk 0:01:36]} 11. Nxe4 {[%clk 0:02:00]}  d5 {[%clk 0:01:27]} 12. Ng5 {[%clk 0:01:57]}  h6 {[%clk 0:01:15]} 13. N5h3 {[%clk 0:01:56]}  d4 {[%clk 0:01:14]} 14. Qd2 {[%clk 0:01:56]}  Qd5 {[%clk 0:00:59]} 15. Kb1 {[%clk 0:01:55]}  Be6 {[%clk 0:00:58]} 16. b3 {[%clk 0:01:55]}  b5 {[%clk 0:00:58]} 17. Bd3 {[%clk 0:01:30]}  a6 {[%clk 0:00:58]} 18. Re1 {[%clk 0:01:29]}  a5 {[%clk 0:00:57]} 19. Be4 {[%clk 0:01:28]}  Qc5 {[%clk 0:00:57]} 20. Bxg6 {[%clk 0:01:18]}  a4 {[%clk 0:00:56]} 21. f5 {[%clk 0:01:15]}  axb3 {[%clk 0:00:52]} 22. fxe6 {[%clk 0:01:15]}  bxa2+ {[%clk 0:00:46]} 23. Ka1 {[%clk 0:01:13]}  Nxe5 {[%clk 0:00:44]} 24. Bd3 {[%clk 0:01:12]}  Nc4 {[%clk 0:00:40]} 25. Qc1 {[%clk 0:00:48]}  Qb4 {[%clk 0:00:38]} 26. Ne2 {[%clk 0:00:44]}  Ra6 {[%clk 0:00:30]} 27. Rhf1 {[%clk 0:00:27]}  Rfa8 {[%clk 0:00:29]} 28. Rf7 {[%clk 0:00:22]}  Qb1+ {[%clk 0:00:27]} 29. Qxb1 {[%clk 0:00:22]}  axb1=R+ {[%clk 0:00:28]} 30. Kxb1 {[%clk 0:00:23]}  Ra1# {[%clk 0:00:28]} 0-1


[Site "https://www.chess.com"]

[Event "Titled Tuesday Blitz March 28 Early 2023"]
[White "Chemin, Justo Reinaldo"]
[Black "Ardila, Oscar Humberto"]
[WhiteFideId "2101580"]
[BlackFideId "4404742"]
[WhiteElo "1940"]
[BlackElo "1911"]
[Result "0-1"]
[Round "08"]
[TimeControl "180+2"]
[Date "2023.03.28"]
[WhiteClock "0:00:02"]
[BlackClock "0:00:37"]

1. d4 {[%clk 0:03:00]}  Nf6 {[%clk 0:02:59]} 2. Nf3 {[%clk 0:02:58]}  b6 {[%clk 0:02:59]} 3. Nc3 {[%clk 0:02:54]}  Bb7 {[%clk 0:02:59]} 4. Bf4 {[%clk 0:02:52]}  e6 {[%clk 0:02:57]} 5. a3 {[%clk 0:02:52]}  Be7 {[%clk 0:02:57]} 6. e3 {[%clk 0:02:52]}  O-O {[%clk 0:02:57]} 7. Bd3 {[%clk 0:02:52]}  d6 {[%clk 0:02:56]} 8. Qe2 {[%clk 0:02:51]}  Nbd7 {[%clk 0:02:56]} 9. h3 {[%clk 0:02:47]}  c5 {[%clk 0:02:56]} 10. dxc5 {[%clk 0:02:32]}  Nxc5 {[%clk 0:02:56]} 11. O-O-O {[%clk 0:02:27]}  Nxd3+ {[%clk 0:02:53]} 12. Qxd3 {[%clk 0:02:25]}  d5 {[%clk 0:02:54]} 13. Kb1 {[%clk 0:02:19]}  Rc8 {[%clk 0:02:53]} 14. Rhe1 {[%clk 0:02:12]}  Qe8 {[%clk 0:02:50]} 15. Bg5 {[%clk 0:01:46]}  h6 {[%clk 0:02:48]} 16. Bxf6 {[%clk 0:01:46]}  Bxf6 {[%clk 0:02:49]} 17. Ne2 {[%clk 0:01:32]}  Rc4 {[%clk 0:02:42]} 18. Nd2 {[%clk 0:01:25]}  Rc7 {[%clk 0:02:39]} 19. e4 {[%clk 0:01:22]}  Qc8 {[%clk 0:02:38]} 20. e5 {[%clk 0:01:20]}  Be7 {[%clk 0:02:37]} 21. f4 {[%clk 0:01:19]}  a6 {[%clk 0:02:31]} 22. Nd4 {[%clk 0:01:19]}  b5 {[%clk 0:02:30]} 23. f5 {[%clk 0:01:17]}  Bc5 {[%clk 0:02:20]} 24. fxe6 {[%clk 0:01:10]}  fxe6 {[%clk 0:02:19]} 25. N2b3 {[%clk 0:01:03]}  Bb6 {[%clk 0:02:13]} 26. Qg6 {[%clk 0:01:00]}  Re7 {[%clk 0:01:58]} 27. Re3 {[%clk 0:00:51]}  a5 {[%clk 0:01:50]} 28. Rg3 {[%clk 0:00:49]}  a4 {[%clk 0:01:49]} 29. Nc1 {[%clk 0:00:45]}  Bxd4 {[%clk 0:01:30]} 30. Rxd4 {[%clk 0:00:41]}  Rf2 {[%clk 0:01:19]} 31. c3 {[%clk 0:00:33]}  Qf8 {[%clk 0:01:13]} 32. Qxh6 {[%clk 0:00:28]}  Qf5+ {[%clk 0:01:13]} 33. Ka2 {[%clk 0:00:25]}  Qc2 {[%clk 0:01:03]} 34. Rb4 {[%clk 0:00:20]}  d4 {[%clk 0:01:02]} 35. Qg5 {[%clk 0:00:16]}  Bd5+ {[%clk 0:01:01]} 36. Ka1 {[%clk 0:00:13]}  Ref7 {[%clk 0:00:54]} 37. Qd8+ {[%clk 0:00:11]}  Kh7 {[%clk 0:00:46]} 38. Qh4+ {[%clk 0:00:11]}  Kg8 {[%clk 0:00:46]} 39. Qd8+ {[%clk 0:00:10]}  Rf8 {[%clk 0:00:46]} 40. Qg5 {[%clk 0:00:10]}  g6 {[%clk 0:00:37]} 41. Rxb5 {[%clk 0:00:06]}  Rf1 {[%clk 0:00:36]} 42. Qxg6+ {[%clk 0:00:02]}  Qxg6 {[%clk 0:00:36]} 43. Rxg6+ {[%clk 0:00:02]}  Kh7 {[%clk 0:00:37]} 0-1


[Site "https://www.chess.com"]

[Event "Titled Tuesday Blitz March 28 Early 2023"]
[White "Lohani, Sujana"]
[Black "Orujov2008"]
[WhiteFideId "12311987"]
[WhiteElo "1718"]
[BlackElo "2277"]
[Result "0-1"]
[Round "08"]
[TimeControl "180+2"]
[Date "2023.03.28"]
[WhiteClock "0:00:01"]
[BlackClock "0:00:56"]

1. d4 {[%clk 0:02:54]}  Nf6 {[%clk 0:02:59]} 2. Nf3 {[%clk 0:02:55]}  e6 {[%clk 0:02:58]} 3. c4 {[%clk 0:02:45]}  d5 {[%clk 0:02:58]} 4. g3 {[%clk 0:02:42]}  Be7 {[%clk 0:02:58]} 5. Bg2 {[%clk 0:02:43]}  O-O {[%clk 0:02:58]} 6. O-O {[%clk 0:02:43]}  dxc4 {[%clk 0:02:59]} 7. Ne5 {[%clk 0:02:36]}  Nd5 {[%clk 0:02:58]} 8. Nxc4 {[%clk 0:02:34]}  b5 {[%clk 0:02:58]} 9. Ne5 {[%clk 0:02:34]}  Bb7 {[%clk 0:02:58]} 10. Nc3 {[%clk 0:02:31]}  Nxc3 {[%clk 0:02:57]} 11. bxc3 {[%clk 0:02:20]}  Bxg2 {[%clk 0:02:57]} 12. Kxg2 {[%clk 0:02:20]}  Nc6 {[%clk 0:02:57]} 13. f4 {[%clk 0:01:17]}  Nxe5 {[%clk 0:02:49]} 14. fxe5 {[%clk 0:01:17]}  c5 {[%clk 0:02:49]} 15. e3 {[%clk 0:01:16]}  cxd4 {[%clk 0:02:48]} 16. exd4 {[%clk 0:01:16]}  Rc8 {[%clk 0:02:48]} 17. Qf3 {[%clk 0:01:09]}  Qd5 {[%clk 0:02:48]} 18. Bd2 {[%clk 0:01:07]}  Qxf3+ {[%clk 0:02:33]} 19. Rxf3 {[%clk 0:01:07]}  Rfd8 {[%clk 0:02:34]} 20. Rb1 {[%clk 0:01:05]}  b4 {[%clk 0:02:34]} 21. cxb4 {[%clk 0:00:55]}  Rc2 {[%clk 0:02:34]} 22. Rf2 {[%clk 0:00:45]}  Rxd4 {[%clk 0:02:16]} 23. Be3 {[%clk 0:00:37]}  Rxf2+ {[%clk 0:02:08]} 24. Kxf2 {[%clk 0:00:36]}  Rd7 {[%clk 0:01:56]} 25. Rc1 {[%clk 0:00:23]}  f6 {[%clk 0:01:55]} 26. Rc8+ {[%clk 0:00:20]}  Kf7 {[%clk 0:01:55]} 27. exf6 {[%clk 0:00:19]}  gxf6 {[%clk 0:01:56]} 28. b5 {[%clk 0:00:17]}  Rb7 {[%clk 0:01:50]} 29. a4 {[%clk 0:00:17]}  e5 {[%clk 0:01:48]} 30. Rc6 {[%clk 0:00:16]}  Bd8 {[%clk 0:01:41]} 31. Ra6 {[%clk 0:00:16]}  Bb6 {[%clk 0:01:41]} 32. Bxb6 {[%clk 0:00:15]}  axb6 {[%clk 0:01:42]} 33. Kf3 {[%clk 0:00:12]}  Ke6 {[%clk 0:01:41]} 34. g4 {[%clk 0:00:11]}  Kd5 {[%clk 0:01:39]} 35. Ra8 {[%clk 0:00:10]}  Rd7 {[%clk 0:01:30]} 36. h4 {[%clk 0:00:09]}  Kc5 {[%clk 0:01:24]} 37. Ke4 {[%clk 0:00:08]}  Rd4+ {[%clk 0:01:24]} 38. Kf5 {[%clk 0:00:07]}  Rf4+ {[%clk 0:01:24]} 39. Ke6 {[%clk 0:00:06]}  e4 {[%clk 0:01:22]} 40. g5 {[%clk 0:00:06]}  fxg5 {[%clk 0:01:22]} 41. hxg5 {[%clk 0:00:06]}  e3 {[%clk 0:01:22]} 42. Kd7 {[%clk 0:00:05]}  Re4 {[%clk 0:01:21]} 43. Rc8+ {[%clk 0:00:02]}  Kb4 {[%clk 0:01:21]} 44. Rc1 {[%clk 0:00:02]}  e2 {[%clk 0:01:21]} 45. Re1 {[%clk 0:00:02]}  Kxa4 {[%clk 0:01:22]} 46. Kc6 {[%clk 0:00:02]}  Ka5 {[%clk 0:00:55]} 47. Ra1+ {[%clk 0:00:02]}  Kb4 {[%clk 0:00:55]} 48. Re1 {[%clk 0:00:02]}  Kc3 {[%clk 0:00:56]} 49. Kxb6 {[%clk 0:00:02]}  Kd2 {[%clk 0:00:56]} 50. Rxe2+ {[%clk 0:00:01]}  Kxe2 {[%clk 0:00:55]} 51. Kc6 {[%clk 0:00:01]}  Re5 {[%clk 0:00:55]} 52. b6 {[%clk 0:00:01]}  Rxg5 {[%clk 0:00:56]} 53. b7 {[%clk 0:00:01]}  Rg8 {[%clk 0:00:56]} 54. Kc7 {[%clk 0:00:01]}  h5 {[%clk 0:00:56]} 0-1


[Site "https://www.chess.com"]

[Event "Titled Tuesday Blitz March 28 Early 2023"]
[White "Karthik Sai Ch"]
[Black "Nan, M K Khine Hlyan"]
[WhiteFideId "46649484"]
[BlackFideId "13002899"]
[WhiteElo "2003"]
[BlackElo "1943"]
[Result "1-0"]
[Round "08"]
[TimeControl "180+2"]
[Date "2023.03.28"]
[WhiteClock "0:00:16"]
[BlackClock "0:00:04"]

1. d4 {[%clk 0:03:00]}  d6 {[%clk 0:02:57]} 2. e4 {[%clk 0:03:00]}  Nf6 {[%clk 0:02:57]} 3. Nc3 {[%clk 0:02:59]}  g6 {[%clk 0:02:58]} 4. Nf3 {[%clk 0:02:59]}  Bg7 {[%clk 0:02:58]} 5. Be2 {[%clk 0:02:59]}  c5 {[%clk 0:02:56]} 6. O-O {[%clk 0:02:58]}  cxd4 {[%clk 0:02:54]} 7. Nxd4 {[%clk 0:02:57]}  O-O {[%clk 0:02:54]} 8. f4 {[%clk 0:02:56]}  Qb6 {[%clk 0:02:52]} 9. Be3 {[%clk 0:02:55]}  Qxb2 {[%clk 0:02:52]} 10. Qd2 {[%clk 0:02:55]}  Qb4 {[%clk 0:02:36]} 11. Rab1 {[%clk 0:02:48]}  Qa5 {[%clk 0:02:35]} 12. Ndb5 {[%clk 0:02:09]}  a6 {[%clk 0:02:23]} 13. Nd4 {[%clk 0:02:07]}  Nc6 {[%clk 0:02:19]} 14. Nb3 {[%clk 0:01:47]}  Qd8 {[%clk 0:02:17]} 15. Bf3 {[%clk 0:01:46]}  Ng4 {[%clk 0:02:10]} 16. Bxg4 {[%clk 0:01:44]}  Bxg4 {[%clk 0:02:09]} 17. Nd5 {[%clk 0:01:44]}  Be6 {[%clk 0:01:52]} 18. Nb6 {[%clk 0:01:40]}  Rb8 {[%clk 0:01:51]} 19. Rfd1 {[%clk 0:01:39]}  Qc7 {[%clk 0:01:40]} 20. a4 {[%clk 0:01:36]}  Bg4 {[%clk 0:01:34]} 21. Rf1 {[%clk 0:01:34]}  Rbd8 {[%clk 0:01:21]} 22. Nd5 {[%clk 0:01:28]}  Qd7 {[%clk 0:01:11]} 23. Bb6 {[%clk 0:01:16]}  Rc8 {[%clk 0:01:06]} 24. h3 {[%clk 0:01:15]}  Be6 {[%clk 0:01:05]} 25. Ne3 {[%clk 0:01:14]}  f5 {[%clk 0:00:48]} 26. exf5 {[%clk 0:01:09]}  Bxf5 {[%clk 0:00:46]} 27. g4 {[%clk 0:01:09]}  Be4 {[%clk 0:00:44]} 28. Rbe1 {[%clk 0:01:01]}  d5 {[%clk 0:00:43]} 29. c4 {[%clk 0:00:42]}  d4 {[%clk 0:00:27]} 30. Nd1 {[%clk 0:00:30]}  Nb4 {[%clk 0:00:19]} 31. Qxb4 {[%clk 0:00:25]}  Qc6 {[%clk 0:00:19]} 32. Bxd4 {[%clk 0:00:18]}  Bh1 {[%clk 0:00:18]} 33. Rf2 {[%clk 0:00:16]}  Bxd4 {[%clk 0:00:17]} 34. Nxd4 {[%clk 0:00:15]}  Qd6 {[%clk 0:00:16]} 35. Qxd6 {[%clk 0:00:15]}  exd6 {[%clk 0:00:16]} 36. Kxh1 {[%clk 0:00:15]}  Rxc4 {[%clk 0:00:17]} 37. Ne6 {[%clk 0:00:16]}  Rxa4 {[%clk 0:00:18]} 38. f5 {[%clk 0:00:17]}  Rc8 {[%clk 0:00:17]} 39. f6 {[%clk 0:00:17]}  Kf7 {[%clk 0:00:16]} 40. Ng5+ {[%clk 0:00:17]}  Kf8 {[%clk 0:00:15]} 41. Nxh7+ {[%clk 0:00:17]}  Kf7 {[%clk 0:00:16]} 42. Ng5+ {[%clk 0:00:18]}  Kf8 {[%clk 0:00:16]} 43. f7 {[%clk 0:00:17]}  Kg7 {[%clk 0:00:13]} 44. Ne6+ {[%clk 0:00:18]}  Kh6 {[%clk 0:00:11]} 45. g5+ {[%clk 0:00:18]}  Kh5 {[%clk 0:00:11]} 46. f8=Q {[%clk 0:00:18]}  Rxf8 {[%clk 0:00:11]} 47. Rxf8 {[%clk 0:00:18]}  Kh4 {[%clk 0:00:09]} 48. Re3 {[%clk 0:00:16]}  Re4 {[%clk 0:00:04]} 49. Rh8# {[%clk 0:00:16]} 1-0


[Site "https://www.chess.com"]

[Event "Titled Tuesday Blitz March 28 Early 2023"]
[White "Prado, Alexandra"]
[Black "Aanna12"]
[WhiteFideId "3301346"]
[WhiteElo "1759"]
[BlackElo "2204"]
[Result "1-0"]
[Round "08"]
[TimeControl "180+2"]
[Date "2023.03.28"]
[WhiteClock "0:00:59"]
[BlackClock "0:00:59"]

1. e4 {[%clk 0:02:58]}  c5 {[%clk 0:02:59]} 2. Nf3 {[%clk 0:02:54]}  d6 {[%clk 0:02:59]} 3. c3 {[%clk 0:02:54]}  Nf6 {[%clk 0:02:55]} 4. Be2 {[%clk 0:02:54]}  g6 {[%clk 0:02:51]} 5. O-O {[%clk 0:02:53]}  Bg7 {[%clk 0:02:52]} 6. Re1 {[%clk 0:02:52]}  O-O {[%clk 0:02:51]} 7. Bf1 {[%clk 0:02:37]}  e5 {[%clk 0:02:50]} 8. a4 {[%clk 0:02:16]}  Nc6 {[%clk 0:02:46]} 9. Na3 {[%clk 0:02:15]}  d5 {[%clk 0:02:37]} 10. exd5 {[%clk 0:02:08]}  Nxd5 {[%clk 0:02:37]} 11. Nc4 {[%clk 0:01:57]}  Re8 {[%clk 0:02:27]} 12. d3 {[%clk 0:01:45]}  Qc7 {[%clk 0:02:17]} 13. a5 {[%clk 0:01:35]}  h6 {[%clk 0:02:05]} 14. d4 {[%clk 0:01:24]}  e4 {[%clk 0:01:52]} 15. dxc5 {[%clk 0:01:15]}  Nf4 {[%clk 0:01:43]} 16. Nd4 {[%clk 0:01:08]}  Bf8 {[%clk 0:00:59]} 17. Nb5 {[%clk 0:00:59]} 1-0


[Site "https://www.chess.com"]

[Event "Titled Tuesday Blitz March 28 Early 2023"]
[White "Hirneise, Jens"]
[Black "Necula, Iulian"]
[WhiteFideId "24614734"]
[BlackFideId "1232380"]
[WhiteElo "2345"]
[BlackElo "1790"]
[Result "1-0"]
[Round "08"]
[TimeControl "180+2"]
[Date "2023.03.28"]
[WhiteClock "0:02:37"]
[BlackClock "0:01:24"]

1. Nf3 {[%clk 0:03:00]}  d6 {[%clk 0:03:00]} 2. c4 {[%clk 0:03:01]}  f5 {[%clk 0:03:00]} 3. d4 {[%clk 0:03:01]}  Nf6 {[%clk 0:03:01]} 4. Nc3 {[%clk 0:03:02]}  g6 {[%clk 0:03:01]} 5. d5 {[%clk 0:03:00]}  Bg7 {[%clk 0:03:02]} 6. g3 {[%clk 0:02:54]}  O-O {[%clk 0:03:03]} 7. Bg2 {[%clk 0:02:54]}  Na6 {[%clk 0:03:00]} 8. O-O {[%clk 0:02:54]}  Nc5 {[%clk 0:03:00]} 9. Nd4 {[%clk 0:02:53]}  a5 {[%clk 0:02:59]} 10. b3 {[%clk 0:02:51]}  Bd7 {[%clk 0:02:56]} 11. Bb2 {[%clk 0:02:51]}  h6 {[%clk 0:02:53]} 12. Re1 {[%clk 0:02:43]}  Qe8 {[%clk 0:02:46]} 13. e4 {[%clk 0:02:42]}  fxe4 {[%clk 0:02:44]} 14. Nxe4 {[%clk 0:02:42]}  Ncxe4 {[%clk 0:02:44]} 15. Bxe4 {[%clk 0:02:42]}  Nxe4 {[%clk 0:02:45]} 16. Rxe4 {[%clk 0:02:42]}  Bxd4 {[%clk 0:02:35]} 17. Qxd4 {[%clk 0:02:41]}  Rf6 {[%clk 0:02:29]} 18. Rae1 {[%clk 0:02:40]}  c5 {[%clk 0:02:01]} 19. dxc6 {[%clk 0:02:39]}  e5 {[%clk 0:01:24]} 20. cxd7 {[%clk 0:02:38]}  Qxd7 {[%clk 0:01:25]} 21. Qd5+ {[%clk 0:02:38]}  Kg7 {[%clk 0:01:24]} 22. Rxe5 {[%clk 0:02:37]} 1-0


[Site "https://www.chess.com"]